Cogmind - Beta 13 *** ADVENTURER MODE // 2024.04.02 @ 02:55:42 Player: Leperion Result: Destroyed by B-36 Bruiser with Hammer Performance ------------- Evolutions (2) 1000 Regions Visited (3) 600 Robots Destroyed (52) 260 Value Destroyed (1628) 1628 Prototype IDs (1) 20 Alien Tech Used (0) 0 Bonus (54) 54 TOTAL SCORE: 3562 Bonus ------- High Alert Combat Kills 90 Friendly Fire -36 Cogmind --------- Core Integrity 0/550 Matter 278/300 Energy 95/125 System Corruption 0% Temperature Cool (4) Movement Treading (160) Location -8/Materials Parts ------- > --- POWER (2) -------- Light Ion Engine > --- PROPULSION (4) --- Light Treads > --- UTILITY (3) ------ Visual Processing Unit Targeting Computer Improved Light Armor Plating > --- WEAPON (2) ------- Mining Laser > --- INVENTORY (5) ---- Improved Terrain Scan Processor Actuator Array Advanced EMP Blaster Multitool Heavy Flail Peak State ------------ > --- POWER ------------ Light Ion Engine Light Angular Momentum Engine > --- PROPULSION ------- Light Treads Improved Treads Improved Treads Improved Treads > --- UTILITY ---------- Visual Processing Unit Targeting Computer Light Armor Plating > --- WEAPON ----------- Heavy Assault Cannon > --- INVENTORY -------- Improved VTOL Module Actuator Array Mining Laser Multitool Heavy Flail [Rating: 24] Favorites ----------- Power Light Ion Engine Engine Light Ion Engine Power Core Light Nuclear Core Propulsion Wheel Treads Improved Treads Leg Carbon-fiber Leg Wheel Wheel Utility Targeting Computer Device Terrain Scanner Processor Targeting Computer Protection Light Armor Plating Weapon Beam Cannon Energy Cannon Beam Cannon Ballistic Gun Assault Rifle Ballistic Cannon Heavy Assault Cannon Launcher Grenade Launcher Special Weapon Plasma Cutter Impact Weapon Heavy Flail Slashing Weapon Makeshift Axe Build | -11 -10 -10 -8 ------- Run | Yrd Mat Sub Mat Slots Evolved 4 | . . . 4 Power 1 | . . . 1 Propulsion 2 | . . . 2 Utility 1 | . . . 1 Weapon . | . . . . Parts Attached 56 | 5 9 14 28 Power 7 | 1 . 2 4 Engine 6 | 1 . 2 3 Core 1 | . . . 1 Reactor . | . . . . Propulsion 14 | 2 . 5 7 Treads 4 | . . . 4 Leg 1 | . . . 1 Wheel 9 | 2 . 5 2 Hover . | . . . . Flight . | . . . . Utility 8 | . 2 1 5 Device 4 | . 1 1 2 Storage . | . . . . Processor 2 | . 1 . 1 Hackware . | . . . . Protection 2 | . . . 2 Artifact . | . . . . Weapon 27 | 2 7 6 12 Energy Gun . | . . . . Energy Cannon 6 | . 3 2 1 Ballistic Gun 2 | 2 . . . Ballistic Cannon 2 | . . . 2 Launcher 4 | . 2 1 1 Special Weapon 6 | . 2 2 2 Impact Weapon 1 | . . . 1 Slashing Weapon 6 | . . 1 5 Piercing Weapon . | . . . . Special Melee Weapon . | . . . . Unidentified Prototypes 1 | . . . 1 Parts Lost 15 | . . 5 10 Power 4 | . . 1 3 Propulsion 7 | . . 2 5 Utility 3 | . . 1 2 Weapon 1 | . . 1 . Highest Loss Streak 4 | . . 3 4 To Critical Strikes . | . . . . Average Slot Usage (%) 83 | . 99 82 74 Engine 12 | . 14 10 14 Treads 5 | . . . 13 Wheel 19 | . 28 20 12 Device 10 | . 13 13 6 Processor 13 | . 14 14 13 Protection 1 | . . . 2 Energy Cannon 8 | . 14 13 . Ballistic Cannon 1 | . . . 3 Launcher 3 | . 11 2 . Special Weapon 1 | . 1 1 1 Slashing Weapon 3 | . . 4 4 Naked Turns . | . . . . Heaviest Build 27 | 7 10 17 27 Greatest Support 89 | 20 20 40 89 Greatest Overweight (x) 4 | . . 2 4 Average Overweight (x) . | . . . . Largest Inventory Capacity 5 | 5 5 5 5 Average Capacity 5 | 5 5 5 5 Most Carried 5 | 5 5 5 5 Average Carried 4 | 2 4 4 4 Final Capacity 5 | 5 5 5 5 Final Carried 5 | 3 5 4 5 Class Distribution -------------------- 76% | Mutant 23% | Scavenger-Mutant Dominant Class ---------------- Mutant | -10/Materials Mutant | -10/Subcaves Scavenger-Mutant | -8/Materials Resources | -11 -10 -10 -8 ----------- Run | Yrd Mat Sub Mat Matter Collected 1297 | 268 200 172 657 Remotely . | . . . . Salvage Created 1732 | 45 268 229 1190 Parts 97 | 1 16 12 68 Haulers Intercepted . | . . . . Recyclers Shooed 1 | . . . 1 Parts Field Recycled . | . . . . Retrieved Matter . | . . . . Parts Self-Destructed 7 | . . 7 . Prevented . | . . . . Kills | -11 -10 -10 -8 ------- Run | Yrd Mat Sub Mat Combat Hostiles Destroyed 42 | 1 9 8 24 Melee 7 | . . 1 6 Guns 1 | 1 . . . Cannons 18 | . 3 2 13 AOE 14 | . 5 4 5 Classes Destroyed 10 | 1 2 1 6 Worker 1 | . . . 1 Builder 1 | . . . 1 Tunneler 2 | . . . 2 Operator 1 | . . . 1 Watcher 5 | . 3 . 2 Swarmer 11 | . 3 2 6 Grunt 20 | 1 6 . 13 Brawler 1 | . . . 1 Sentry 4 | . . . 4 Subdweller 6 | . . 6 . Best Kill Streak 7 | 1 5 5 7 Combat Bots Only 5 | 1 5 5 5 Max Kills in Single Turn 3 | 1 2 3 2 Gunslinging . | . . . . Exploded 3 | . 2 3 2 Melee 1 | . . 1 1 Uniques/NPCs Destroyed . | . . . . Combat | -11 -10 -10 -8 -------- Run | Yrd Mat Sub Mat Hostile Shots Fired 272 | 4 12 79 177 Missed 84 | 1 4 30 49 Damage Taken 2218 | 24 128 355 1711 Core 676 | 8 24 79 565 Absorbed by Shields . | . . . . Ignored by Resistances 587 | 8 39 103 437 Core Remaining (%) 75 | 96 . 55 . Volleys Fired 80 | 3 16 14 47 Largest 2 | 2 2 2 2 Hottest 180 | 40 120 90 180 Shots Fired 118 | 6 32 20 60 Gun 6 | 6 . . . Cannon 82 | . 18 14 50 Launcher 21 | . 11 2 8 Special 9 | . 3 4 2 Kinetic 38 | 6 . . 32 Thermal 59 | . 21 18 20 Explosive 13 | . 11 2 . Electromagnetic 8 | . . . 8 Robot Hit Streak 14 | 3 9 7 14 Robot Miss Streak 4 | 1 1 1 4 Penetration Max . | . . . . Secondary Targets . | . . . . Shots Hit Robots 109 | 4 20 19 66 Core Hits 78 | 2 19 14 43 Critical Kills 2 | . 1 1 . Critical Parts Destroyed . | . . . . Critical Strikes 6 | . 1 1 4 Meltdown 2 | . 1 1 . Blast 2 | . . . 2 Sever 2 | . . . 2 Melee Attacks 27 | . . 4 23 Impact 3 | . . . 3 Slashing 24 | . . 4 20 Piercing . | . . . . Sneak Attacks 4 | . . . 4 Combat Hostiles . | . . . . Follow-up Attacks . | . . . . Damage Inflicted 4209 | 53 632 732 2792 Guns 53 | 53 . . . Cannons 1682 | . 177 211 1294 Explosions 1353 | . 443 391 519 Melee 1036 | . . 105 931 Ramming 3 | . . 3 . Kinetic 995 | 53 . . 942 Thermal 822 | . 189 233 400 Explosive 834 | . 443 391 . Electromagnetic 519 | . . . 519 Impact 187 | . . . 187 Slashing 849 | . . 105 744 Piercing . | . . . . Highest Corruption 1 | . 1 1 . Average Corruption 1 | . 1 1 . Corruption Purged . | . . . . Corruption Blocked . | . . . . Effects 10 | . 3 7 . Message Errors 3 | . 2 1 . Matter Fused 4 | . . 4 . Energy Discharges 2 | . 1 1 . Data Loss (minor) 1 | . . 1 . Overload Shots . | . . . . Overflow Damage 142 | . 4 . 138 Projectiles 59 | . . . 59 Explosions 28 | . 4 . 24 Melee 55 | . . . 55 Knockbacks 12 | . . . 12 Impact . | . . . . Kinetic 10 | . . . 10 Secondary 2 | . . . 2 Self-Inflicted Damage 225 | . 67 2 156 Shots 13 | . 5 1 7 Rammed 1 | . . 1 . Targets Rammed 1 | . . 1 . Kicked . | . . . . Crushed . | . . . . Highest Temperature 756 | . 126 25 756 Average Temperature 170 | . 51 17 209 Received Heat Transfer 1047 | 18 36 192 801 Effects 26 | . . . 26 Shutdowns 8 | . . . 8 Interference 2 | . . . 2 Matter Decay 4 | . . . 4 Short Circuit 4 | . . . 4 Damage (minor) 1 | . . . 1 Damage (major) 4 | . . . 4 Damage (core) 3 | . . . 3 Siege Activations . | . . . . Robots Corrupted 1 | . . . 1 Combat Hostiles . | . . . . Parts Fried 3 | . . . 3 Impact Corruptions . | . . . . Robots Melted 2 | . 1 1 . Combat Hostiles 2 | . 1 1 . Parts Melted 4 | . 3 1 . Heat Transferred 1506 | . 407 518 581 Parts Sabotaged . | . . . . Parts Stolen . | . . . . Parts Stripped . | . . . . Power Chain Reactions 3 | . . . 3 Alert | -11 -10 -10 -8 ------- Run | Yrd Mat Sub Mat Peak Influence 602 | 20 314 . 602 Initial 250 | . 11 . 250 Average 237 | 12 132 . 340 Maximum Alert Level 2 | . 1 . 2 Low Security (%) 40 | 100 78 . 6 Level 1 43 | . 21 . 63 Level 2 16 | . . . 29 Level 3 . | . . . . Level 4 . | . . . . Level 5 . | . . . . High Security . | . . . . Max Security . | . . . . Squads Dispatched 5 | . 2 . 3 Investigation 3 | . 2 . 1 Extermination . | . . . . Reinforcement 2 | . . . 2 Assault . | . . . . Garrison . | . . . . Intercept . | . . . . Searches Triggered . | . . . . Construction Impeded 1 | . . . 1 Haulers Reinforced . | . . . . Active Scanning Responses . | . . . . Cargo Convoy Interrupts . | . . . . Stealth | -11 -10 -10 -8 --------- Run | Yrd Mat Sub Mat Distress Signals 1 | . . . 1 Communications Jammed . | . . . . Distress Signals . | . . . . Times Spotted 107 | 1 15 50 41 Peak Tracking Total 8 | 1 4 5 8 Tactical Retreats 6 | . . 2 4 Traps | -11 -10 -10 -8 ------- Run | Yrd Mat Sub Mat Traps Triggered 2 | . . 1 1 Indirectly . | . . . . Trap Hack Attempts . | . . . . Triggered . | . . . . Disarmed . | . . . . Reprogrammed . | . . . . Reused . | . . . . Traps Extracted . | . . . . Installed . | . . . . Triggered . | . . . . Machines | -11 -10 -10 -8 ---------- Run | Yrd Mat Sub Mat Machines Disabled 5 | . 3 . 2 Max in Single Turn 1 | . 1 . 1 Machines Repaired . | . . . . Machines Dismantled 3 | . 2 . 1 Machines Sabotaged . | . . . . Overloaded Fab Kills . | . . . . Hacking | -11 -10 -10 -8 --------- Run | Yrd Mat Sub Mat Machines Accessed 7 | . 5 . 2 Terminals 6 | . 4 . 2 Fabricators . | . . . . Repair Stations 1 | . 1 . . Recycling Units . | . . . . Scanalyzers . | . . . . Garrison Access . | . . . . Total Hacks 21 | . 17 . 4 Successful 15 | . 11 . 4 Failed 5 | . 5 . . Catastrophic 1 | . 1 . . Database Lockouts 1 | . 1 . . Manual . | . . . . Terminals 18 | . 14 . 4 Fabricators . | . . . . Repair Stations 3 | . 3 . . Recycling Units . | . . . . Scanalyzers . | . . . . Garrison Access . | . . . . Terminal Hacks 14 | . 10 . 4 Record 8 | . 5 . 3 Emergency Access Points 1 | . 1 . . Alert Level 1 | . 1 . . Locate Traps 1 | . 1 . . Maintenance Status 1 | . 1 . . Reinforcement Status 1 | . 1 . . Hauler Manifests 1 | . . . 1 Fabricator Hacks . | . . . . Repair Station Hacks 1 | . 1 . . Scan Component 1 | . 1 . . Recycling Unit Hacks . | . . . . Scanalyzer . | . . . . Garrison Access Hacks . | . . . . Unauthorized Hacks . | . . . . Terminals . | . . . . Fabricators . | . . . . Repair Stations . | . . . . Recycling Units . | . . . . Scanalyzers . | . . . . Garrison Access . | . . . . Data Cores Recovered 1 | . . . 1 Used . | . . . . Hacking Detections 5 | . 3 . 2 Full Trace Events 3 | . 2 . 1 Feedback Events 1 | . 1 . . Corruption 1 | . 1 . . Feedback Blocked . | . . . . Robot Schematics Acquired . | . . . . Robots Built . | . . . . Authchips . | . . . . Time . | . . . . Total Robot Build Rating . | . . . . Part Schematics Acquired . | . . . . Parts Built . | . . . . Authchips . | . . . . Time . | . . . . Total Part Build Rating . | . . . . Parts Repaired . | . . . . Time . | . . . . Parts Recycled . | . . . . Recycled Matter . | . . . . Retrieved Matter . | . . . . Retrieved Components . | . . . . Parts Scanalyzed . | . . . . Part Schematics Acquired . | . . . . Parts Damaged . | . . . . Bothacking | -11 -10 -10 -8 ------------ Run | Yrd Mat Sub Mat Used RIF Installer . | . . . . Robots Hacked . | . . . . Non-combat . | . . . . Combat . | . . . . Robot Hacks Applied . | . . . . Relay Couplers Released . | . . . . Fabnet Peak Effective % . | . . . . Robots Rewired . | . . . . Allies Hacked . | . . . . Hacks Repelled . | . . . . Allies | -11 -10 -10 -8 -------- Run | Yrd Mat Sub Mat Total Allies . | . . . . Largest Group . | . . . . Highest-Rated Group . | . . . . Highest-Rated Ally . | . . . . Total Orders . | . . . . Ally Attacks . | . . . . Total Damage . | . . . . Kills . | . . . . Allies Corrupted . | . . . . Allies Melted . | . . . . Intel | -11 -10 -10 -8 ------- Run | Yrd Mat Sub Mat Robot Analysis Total . | . . . . Derelict Logs Recovered . | . . . . Drone Launches . | . . . . Drone Recoveries . | . . . . Exploration | -11 -10 -10 -8 ------------- Run | Yrd Mat Sub Mat Turns Passed 2746 | 191 666 786 1103 Spaces Moved 2068 | 105 658 611 694 Core 160 | 31 . 122 7 Treads 226 | . . . 226 Legs 4 | . . . 4 Wheels 1678 | 74 658 489 457 Hover . | . . . . Flight . | . . . . Fastest Speed 50 | 50 80 50 80 Average Speed 103 | 71 80 113 120 Slowest Speed 250 | 80 80 150 250 Overloaded Moves . | . . . . Propulsion Burnouts . | . . . . Robots Hopped . | . . . . Cave-ins Triggered . | . . . . Exploration Rate (%) 41 | 7 93 26 38 Regions Visited 3 Branch Regions 1 Pre-discovered Areas . | . . . . Known Exits Taken . | . . . . Unknown Exits Taken 3 | 1 1 1 . Scrap Searched . | . . . . Spaces Dug . | . . . . Terrain Destroyed 67 | . 39 7 21 Melee . | . . . . Projectile 9 | . . . 9 AOE 58 | . 39 7 12 Terrain Rammed . | . . . . Walls Destroyed . | . . . . Machines Disabled . | . . . . Actions | -11 -10 -10 -8 --------- Run | Yrd Mat Sub Mat Total 2496 | 215 753 680 848 Wait 144 | 95 35 5 9 Move 2065 | 104 657 610 694 Hop . | . . . . Pick Up 68 | 8 17 18 25 Fast Attach 1 | . . . 1 Attach 32 | 5 2 8 17 Detach 1 | . . . 1 Swap 23 | . 7 6 10 Drop 43 | . 13 14 16 Fire 80 | 3 16 14 47 Melee 27 | . . 4 23 Ram 1 | . . 1 . Kick . | . . . . Crush . | . . . . Escape Stasis . | . . . . Rewire . | . . . . Trap . | . . . . Miscellaneous 11 | . 6 . 5 Route ------- -11/Scrapyard -10/Materials (discovered 6 exits: [*Mat x3] / [*Min x2] / [*Sub]) -10/Subcaves (discovered 2 exits: *Mat / [*Rec]) -8/Materials History --------- Turn | Location | Event 2 | -11/Scrapyard | Met Revision 17 64 | -11/Scrapyard | Discovered new exit (range 8) 192 | -11/Scrapyard | Entered Materials 279 | -10/Materials | Discovered new exit (range 7) 343 | -10/Materials | Build established: Mutant 345 | -10/Materials | Discovered new exit (range 16) 421 | -10/Materials | Central database locked down 502 | -10/Materials | Discovered new exit (range 9) 580 | -10/Materials | Discovered new exit (range 12) 738 | -10/Materials | Discovered new exit (range 7) 854 | -10/Materials | Discovered new exit (range 5) 858 | -10/Materials | Entered Subcaves 858 | -10/Subcaves | Discovered new exit (range 13) 905 | -10/Subcaves | Lost 3 parts (1p2n) 1041 | -10/Subcaves | Ambushed by swarm of Subdwellers 1045 | -10/Subcaves | Ambushed by Subdwellers from Twisted Machinery 1320 | -10/Subcaves | Shifting Twisted Machinery released Mak. Axe 1321 | -10/Subcaves | Shifting Twisted Machinery released Sub. Laser 1612 | -10/Subcaves | Discovered new exit (range 16) 1644 | -10/Subcaves | Entered Materials 1644 | -8/Materials | Evolved 4 slots: Power x1, Propulsion x2, Utility x1 1652 | -8/Materials | Lost 3 allies 2041 | -8/Materials | Core integrity fell below 50% 2054 | -8/Materials | Lost 3 parts (1p1n1u) 2309 | -8/Materials | Core integrity fell below 20% 2744 | -8/Materials | Lost 4 parts (1p3n) 2747 | -8/Materials | Destroyed by B-36 Bruiser with Hammer Last Messages --------------- Engine. G-47 Trooper IFF system glitched. Aluminum Leg fried. G-47 Trooper destroyed. Acquired 21 matter. K-01 Serf collects debris. Destroyed Lgt. Deuterium Engine. Door malfunctions. ALERT: Construction progress impeded, dispatching reinforcements to local area. Destroyed Imp. Hover Unit. G-47 Trooper destroyed. Door malfunctions. W-25 Informer system terminally corrupted. [Achievement: Power Corrupts] Imp. Signal Interpreter fried. Imp. Hover Unit fried. Acquired 59 matter. K-01 Serf collects debris. [Achievement: First Step to Greatness] Map ----- +----------------------------------------------------+ | ### ! ##########?????????????????????#?????? | | ??######### # #???????#?????????????????????? | | ???#T"#??## # """ #????????????????????? ???????? | | #### "##### # """ #?????????????????????????????? | | ! + """ #?????????????????????? ??????? | | ########### # #???????????????????? ????????? | | #?????????# # ! #?????????????????????????????? | | #?????????# #################????????????????????? | | #?????????# #??# """ # # #????????????????????? | | ??????????# #??# """ %" ####?????????????????? | | ??????????# #??#! """ = = = #?????????????????? | | ??????????# #??# / [ #?????????????????? | | ??????????# #??# #! =" #?????????????????? | | ????????### #### ]# #?????????????????? | | ????????# #######+### #?????????????????? | | ????????# # """ #?????????????????? | | ????????# / """ #?????????????????? | | ????????# =% # """ #?????????????????? | | ????????# #######"#/# #?????????????????? | | ????????###+###?# *[%# """ #?????????????????? | | ????????????????# %% % # """ #?????????????????? | | ????????????????# %% # """ #?????????????????? | | ????????????????# % # #?????????????????? | | ????????????????# #######??????????????????? | | ????????????????# [#####????????????????????? | | ????????????????# %b@ =#????????????????????? | | ????????????????# g###=#????????????????????? | | ????????????????# = k #?? #????????????????????? | | ????????????????# ] #???#????????????????????? | | ????????????????# " ###????????????????????????? | | ????????????????###### ?????????????????????????? | | ?????????????????????? ????????????????????????? | | ?????????????????????? """???????????????????????? | | ??????????????????????"""""??????????????????????? | | ???????????????????????"""" ?????????????????????? | | ???????????????????????""""? ????????????????????? | | ???????????????????????"""???????????????????????? | | ??????????????????????? ?????????????????????????? | | ?????????????????????????????????????????????????? | | ?????????????????????????????????????????????????? | | ?????????????????????????????????????????????????? | | ?????????????????????????????????????????????????? | | | | | | | | | | | | | | | | | +----------------------------------------------------+ Best States ------------- Heat Dissipation 45 Energy Generation 28 Energy Capacity 230 Matter Stores 300 Matter Capacity 300 Sight Range 18 Robot Scan Range 14 Terrain Scan Range 14 Terrain Scan Density 10 Armor Coverage 150 Resistance: KI 20 Resistance: TH 20 Resistance: EX 20 Resistance: EM 20 Resistance: I 20 Resistance: S 20 Resistance: P 20 Evasion (%) 50 Targeting Accuracy 5 Recoil Reduction 4 Offensive Hacking 10 Item Schematics ----------------- None Robot Schematics ------------------ None Fabricated ------------ Nothing Alien Tech Used ----------------- None Achievements -------------- First Step to Greatness It's Just You Let's See Who's Tougher Power Corrupts Risk Taker Shopping List Challenges ------------ None Game ------ Seed ImpactQuantumNanoactuators Manual? 0 Play Time 01:07:51 Cumulative 1.6 hours Start 2024.03.31 @ 22:00:17 End 2024.04.02 @ 02:55:42 Sessions 3 Manual Loads 0 Difficulty Adventurer Special Mode None Game No. 2 Rogue 0 Adventurer 2 Explorer 0 Win Type - Total 0 Types 0/0/0/0/0/0/0/0/0 Lore% 1 Gallery% 3 Achievement% 3 Wizard Run 0 Options --------- Layout 1 ASCII 0 Keyboard 0 Movement Mouse Keybinds 0 Fullscreen 1 Font 16/SmallcapsGlow Map View 55x38 Zoom Use 0% Tactical HUD 0 Map Filters NONE Filters NONE Steam 1 RUN: 25b17488-a5d7-4c40-bc0d-7095aa406749